Cogmind - Beta 15 @@@ ROGUE MODE // 2025.08.24 @ 23:53:51 Player: cptwinky Result: Destroyed by H-88 Terminator with KE Penetrator Performance ------------- Evolutions (9) 4500 Regions Visited (29) 5800 Robots Destroyed (385) 1925 Value Destroyed (18821) 18821 Prototype IDs (103) 2060 Alien Tech Used (2) 400 Bonus (12021) 12021 TOTAL SCORE: 45527 Bonus ------- Triggered Max Security 1000 High Alert Combat Kills 6801 Follower Combat Kills 698 Awakened Behemoth Slayer 1000 Entered Garrisons 200 Entered DSFs 500 Aligned with FarCom 300 Met Data Miner 300 Met Imprinter 300 Acquired ECA 300 Met Zhirov 300 Scanned by Researcher 500 Friendly Fire -178 Cogmind --------- Core Integrity 0/1600 Matter 256/300 Energy 100/100 System Corruption 0% Temperature Cool (0) Movement Core (50) Location -1/Access Parts ------- > --- POWER (1) -------- (None) > --- PROPULSION (2) --- (None) > --- UTILITY (20) ----- Advanced System Shield > --- WEAPON (2) ------- CR-A16's Behemoth Slayer > --- INVENTORY (5) ---- (None) Peak State ------------ > --- POWER ------------ Light Particle Reactor > --- PROPULSION ------- Centrium Wheel Centrium Wheel > --- UTILITY ---------- Cargo Storage Unit Long-range Terrain Scanner Advanced Terrain Scan Processor Advanced Launcher Guidance Computer Advanced Target Analyzer Advanced Target Analyzer Launcher Loader Improved Weapon Cycler Makeshift Transmission Jammer Graphene Brace Advanced Shield Generator Advanced Hacking Suite Experimental Hacking Suite Advanced System Shield > --- WEAPON ----------- Matter Neutralizer Enhanced Gauss Cannon > --- INVENTORY -------- Light Ion Engine Improved Heavy Siege Treads Improved Heavy Siege Treads High-density Centrium Wheel Cooled Antigrav System Advanced Energy Well Matter Compressor Matter Compressor Launcher Loader Experimental Weapon Shielding Long-range Tractor Beam Trap Reconfigurator Nova Cannon Improved Plasma Cutter CR-A16's Behemoth Slayer [Rating: 136] Favorites ----------- Power F-cell Engine Engine F-cell Engine Power Core Light Nuclear Core Reactor Light Particle Reactor Propulsion Armored Huge Wheel Treads Light Treads Wheel Armored Huge Wheel Flight Unit Nuclear Pulse Array Utility Core Analyzer Device Improved Cooling System Storage Cargo Storage Unit Processor Core Analyzer Hackware Advanced System Shield Protection Improved Medium Armor Plating Weapon Mini Assault Cannon Energy Gun EM Pulse Gun Energy Cannon Heavy Particle Cannon Ballistic Gun Light Assault Rifle Ballistic Cannon Mini Assault Cannon Launcher Heavy Rocket Launcher Special Weapon Mining Laser Impact Weapon Powered Hammer Slashing Weapon Axe Piercing Weapon CR-A16's Behemoth Slayer Special Melee Weapon Improved Datajack Build | -11 -10 -10 -10 -9 -8 -8 -8 -7 -7 -7 -6 -6 -6 -6 -6 -5 -5 -5 -5 -5 -4 -4 -4 -4 -3 -3 -2 -2 -1 ------- Run | Yrd Mat Min Exi Min Mat Gar Mat Fac Low Zio Pro Fac Low Low Dat Pro Fac Upp Upp Zhi Pro Fac Upp Upp Res Qua Res DSF Acc Slots Evolved 18 | . . . . . 4 . . 2 . . . 2 . . . . 2 . . . . 2 . . 2 . 2 . 2 Power . | . . . . . . . . . . . . . . . . . . . . . . . . . . . . . . Propulsion . | . . . . . . . . . . . . . . . . . . . . . . . . . . . . . . Utility 18 | . . . . . 4 . . 2 . . . 2 . . . . 2 . . . . 2 . . 2 . 2 . 2 Weapon . | . . . . . . . . . . . . . . . . . . . . . . . . . . . . . . Parts Attached 205 | 7 4 3 . 4 24 4 2 18 7 2 5 28 2 6 . 4 10 5 3 5 4 16 4 2 9 10 3 4 10 Power 14 | 1 . 1 . 1 2 . . 2 . . 1 2 . . . . 1 . . 2 . . . . . 1 . . . Engine 10 | 1 . 1 . . 1 . . 2 . . 1 2 . . . . 1 . . 1 . . . . . . . . . Core 2 | . . . . 1 1 . . . . . . . . . . . . . . . . . . . . . . . . Reactor 2 | . . . . . . . . . . . . . . . . . . . . 1 . . . . . 1 . . . Propulsion 28 | 2 . . . 2 4 1 . 3 2 . 2 . . . . . . 1 . . . 2 . . 2 1 . 2 4 Treads 14 | 2 . . . . 3 1 . 2 2 . . . . . . . . . . . . . . . 1 1 . 1 1 Leg . | . . . . . . . . . . . . . . . . . . . . . . . . . . . . . . Wheel 11 | . . . . 2 1 . . 1 . . 2 . . . . . . 1 . . . 2 . . 1 . . 1 . Hover . | . . . . . . . . . . . . . . . . . . . . . . . . . . . . . . Flight 3 | . . . . . . . . . . . . . . . . . . . . . . . . . . . . . 3 Utility 117 | 1 1 . . . 13 2 2 12 3 1 1 21 1 2 . 2 6 4 3 2 4 14 1 1 7 5 3 1 4 Device 50 | . . . . . 4 1 1 5 1 . . 10 1 2 . 1 1 1 1 . 2 8 1 1 3 2 . 1 3 Storage 7 | 1 1 . . . . . 1 2 . . . 1 . . . . . . . . . . . . . 1 . . . Processor 16 | . . . . . 1 . . 2 1 . . 4 . . . . 1 . . . . 2 . . 2 . 2 . 1 Hackware 16 | . . . . . 2 . . 1 . . . 4 . . . . 4 . 1 1 . 2 . . . . 1 . . Protection 28 | . . . . . 6 1 . 2 1 1 1 2 . . . 1 . 3 1 1 2 2 . . 2 2 . . . Artifact . | . . . . . . . . . . . . . . . . . . . . . . . . . . . . . . Weapon 46 | 3 3 2 . 1 5 1 . 1 2 1 1 5 1 4 . 2 3 . . 1 . . 3 1 . 3 . 1 2 Energy Gun 3 | 2 . . . . 1 . . . . . . . . . . . . . . . . . . . . . . . . Energy Cannon 8 | . . . . . 1 . . . . . . 1 1 2 . . 1 . . . . . . . . 1 . 1 . Ballistic Gun 4 | 1 1 . . . 1 . . . . . . . . . . . . . . . . . . 1 . . . . . Ballistic Cannon 11 | . 2 . . . 2 . . 1 . . . 3 . . . . 2 . . . . . . . . . . . 1 Launcher 13 | . . . . 1 . 1 . . 1 1 . 1 . 1 . 2 . . . 1 . . 2 . . 2 . . . Special Weapon 2 | . . 1 . . . . . . . . . . . . . . . . . . . . . . . . . . 1 Impact Weapon 1 | . . . . . . . . . 1 . . . . . . . . . . . . . . . . . . . . Slashing Weapon 1 | . . . . . . . . . . . . . . . . . . . . . . . 1 . . . . . . Piercing Weapon 2 | . . . . . . . . . . . 1 . . 1 . . . . . . . . . . . . . . . Special Melee Weapon 1 | . . 1 . . . . . . . . . . . . . . . . . . . . . . . . . . . Unidentified Prototypes 18 | . . . . . 3 . . . . . . 2 . 1 . 2 . . . 3 . 1 . . 1 2 2 1 . Corrupted Parts 2 | . . . . . . . . . . . . . . . . . . . . . 1 . . 1 . . . . . System Corruption 16 | . . . . . . . . . . . . . . . . . . . . . 6 . . 10 . . . . . Parts Lost 61 | . . . . 4 5 2 . . . . 2 1 . . . 2 1 1 . . . . 2 1 1 14 1 8 16 Power 4 | . . . . . 1 . . . . . 1 . . . . . . . . . . . . . . 2 . . . Propulsion 6 | . . . . 2 1 . . . . . . . . . . . . . . . . . . . . 1 . . 2 Utility 37 | . . . . 1 2 2 . . . . 1 1 . . . 2 1 . . . . . 1 1 1 7 . 5 12 Weapon 14 | . . . . 1 1 . . . . . . . . . . . . 1 . . . . 1 . . 4 1 3 2 Highest Loss Streak 12 | . . . . 4 3 1 . . . . 2 1 . . . 1 1 1 . . . . 1 1 1 9 1 8 12 To Critical Strikes . | . . . . . . . . . . . . . . . . . . . . . . . . . . . . . . Average Backups 21 | 4 7 14 14 14 14 14 15 19 24 23 23 25 27 26 26 26 25 25 25 25 26 25 26 26 24 22 13 11 3 Power 1 | . 1 1 2 3 . . 1 1 1 1 1 1 2 2 2 2 1 1 1 1 1 1 1 1 1 . . . . Propulsion 1 | 2 3 4 4 4 1 2 2 2 2 1 1 1 1 1 1 1 1 2 2 2 2 1 2 3 3 3 3 3 . Utility 11 | . 1 4 4 4 8 7 7 9 12 12 15 15 15 15 16 14 12 13 14 14 15 14 14 13 12 12 7 5 . Weapon 5 | . 2 4 4 2 2 4 4 5 7 6 4 6 8 7 7 7 8 7 7 8 6 6 6 6 5 4 2 1 1 Tool/Special . | . . . . . . . . . . . . . . . . . . . . . . . . . . . . . . Unused Backups 48 | . 2 . 3 . 7 . 1 9 . 2 1 11 . 1 . 2 1 . . 1 . . 1 . 2 . . 3 1 Power 7 | . . . 1 . 2 . 1 1 . . . 1 . . . . . . . . . . . . . . . . 1 Propulsion 6 | . 2 . . . 1 . . 1 . . . . . . . . . . . . . . . . 2 . . . . Utility 21 | . . . 2 . . . . 4 . . 1 8 . . . 2 . . . . . . 1 . . . . 3 . Weapon 14 | . . . . . 4 . . 3 . 2 . 2 . 1 . . 1 . . 1 . . . . . . . . . Tool/Special . | . . . . . . . . . . . . . . . . . . . . . . . . . . . . . . Average Slot Usage (%) 87 | . 98 100 86 91 96 98 100 98 99 100 95 79 73 72 80 72 79 87 88 86 87 83 84 82 86 68 71 65 43 Engine 6 | . 14 14 14 2 5 9 9 7 7 7 6 6 6 6 6 6 5 5 5 5 5 5 5 5 4 1 . . . Treads 5 | . 28 28 28 23 5 18 18 7 7 7 5 . . . . . . . . . . . . . . 1 . . . Wheel 5 | . . . . 1 12 . . 6 6 7 7 6 6 6 6 6 5 5 5 5 5 5 5 5 3 3 8 6 . Device 17 | . . . . . 17 14 9 13 20 15 19 15 13 16 20 16 14 21 23 21 27 25 26 27 24 12 20 16 15 Storage 6 | . 14 14 14 14 9 9 9 7 7 7 7 6 6 6 6 6 5 5 5 5 5 5 5 5 4 4 4 2 . Processor 14 | . . . . . 5 9 9 15 23 23 23 20 26 22 20 20 13 11 11 11 6 9 10 10 13 13 11 16 10 Hackware 5 | . . . . . 2 . . 4 . . . 5 . . . . 13 11 11 11 11 14 15 15 13 9 12 13 11 Protection 10 | . 12 14 14 9 17 20 27 17 9 15 7 8 6 6 6 9 7 11 11 11 11 5 5 5 8 11 . . . Ballistic Cannon 9 | . 9 26 . 23 10 15 11 13 13 11 11 8 6 5 . 5 9 10 11 . 10 8 9 4 8 1 3 1 . Peak Build Rating 136 | 6 8 11 12 12 37 39 36 49 51 51 60 73 71 77 77 75 91 88 91 94 97 115 108 112 126 132 129 136 100 Average Rating 66 | 4 7 8 10 11 30 35 34 42 49 50 51 65 70 71 76 71 81 86 89 90 95 105 105 104 116 109 119 110 82 On Entrance 63 | . 6 8 11 10 11 37 35 36 49 51 50 53 71 71 77 71 72 83 87 91 94 97 107 108 110 116 82 129 72 Naked Turns . | . . . . . . . . . . . . . . . . . . . . . . . . . . . . . . Heaviest Build 231 | 14 32 32 30 32 60 60 58 121 123 124 133 191 188 189 189 189 196 198 193 193 213 212 217 214 231 222 198 199 19 Greatest Support 44 | 40 40 40 40 40 44 44 42 42 19 19 28 40 40 40 40 40 40 28 28 40 40 44 40 40 40 32 32 36 15 Greatest Overweight (x) 12 | . . . . 1 5 1 1 12 12 12 11 6 4 4 4 4 6 7 6 6 5 5 5 5 8 7 6 6 1 Average Overweight (x) 4 | . . . . . 2 1 1 6 6 6 6 3 4 4 4 4 4 6 6 5 4 4 4 4 6 6 6 1 . Largest Inventory Capacity 30 | 8 15 15 15 15 15 15 15 25 25 25 25 30 30 30 30 30 30 30 30 30 30 30 30 30 30 30 30 30 5 Average Capacity 24 | 7 9 15 15 15 15 15 15 19 25 25 25 27 30 30 30 30 30 30 30 30 30 30 30 30 30 30 30 22 5 Most Carried 30 | 7 12 15 15 15 15 15 15 25 25 25 25 30 30 30 30 30 30 30 30 30 30 30 30 30 30 30 22 18 5 Average Carried 23 | 4 7 14 14 14 14 14 14 19 24 24 24 27 30 29 29 29 29 29 29 29 29 29 29 28 29 27 16 13 4 Final Capacity 30 | 8 15 15 15 15 15 15 15 25 25 25 25 30 30 30 30 30 30 30 30 30 30 30 30 30 30 30 30 5 5 Final Carried 30 | 7 12 15 15 12 15 15 15 25 25 25 25 30 30 30 30 30 30 29 30 30 29 30 28 29 28 23 18 5 . Class Distribution -------------------- 50% | Mutant 23% | Hauler-Mutant 14% | Hacker-Mutant 5% | Hacker-Skirmisher 4% | Hauler-Skirmisher Dominant Class ---------------- Mutant | -10/Materials Mutant | -10/Mines Mutant | -10/Exiles Mutant | -9/Mines Mutant | -8/Materials Mutant | -8/Garrison Mutant | -8/Materials Mutant | -7/Factory Mutant | -7/Lower Caves Mutant | -7/Zion Mutant | -6/Proximity Caves Hauler-Mutant | -6/Factory Hauler-Skirmisher | -6/Lower Caves Hauler-Skirmisher | -6/Lower Caves Hauler-Mutant | -6/Data Miner Hauler-Mutant | -5/Proximity Caves Hacker-Mutant | -5/Factory Hauler-Mutant | -5/Upper Caves Hauler-Mutant | -5/Upper Caves Hauler-Mutant | -5/Zhirov Hauler-Mutant | -4/Proximity Caves Hacker-Skirmisher | -4/Factory Hacker-Mutant | -4/Upper Caves Hacker-Mutant | -4/Upper Caves Hacker-Mutant | -3/Research Hauler-Mutant | -3/Quarantine Hacker-Skirmisher | -2/Research Hacker-Mutant | -2/DSF Hacker-Mutant | -1/Access Resources | -11 -10 -10 -10 -9 -8 -8 -8 -7 -7 -7 -6 -6 -6 -6 -6 -5 -5 -5 -5 -5 -4 -4 -4 -4 -3 -3 -2 -2 -1 ----------- Run | Yrd Mat Min Exi Min Mat Gar Mat Fac Low Zio Pro Fac Low Low Dat Pro Fac Upp Upp Zhi Pro Fac Upp Upp Res Qua Res DSF Acc Matter Collected 15343 | 270 69 136 . 91 809 702 101 624 323 50 563 1993 226 305 . 592 1227 330 150 94 587 1493 424 385 1097 2267 226 72 137 Remotely 4409 | . . . . . . . . . . . . 250 . 165 . . 966 . . . 180 560 131 41 445 1671 . . . Salvage Created 12843 | 22 305 281 . 197 829 561 177 489 109 . 354 1765 174 317 . 311 681 371 140 129 423 1073 304 337 862 2580 12 . 40 Parts 494 | 4 23 17 . 12 41 22 11 23 3 . 18 66 . 5 . 11 38 15 4 1 14 33 14 9 30 77 1 . 2 Haulers Intercepted 11 | . 1 . . . 3 . 2 . . . . 5 . . . . . . . . . . . . . . . . . Recyclers Shooed 17 | . 3 . . 2 1 . . . . . . 6 . . . . . . . . . 3 . . 2 . . . . Parts Field Recycled 19 | . . . . . . . . . . . . 19 . . . . . . . . . . . . . . . . . Retrieved Matter 205 | . . . . . . . . . . . . 205 . . . . . . . . . . . . . . . . . Parts Self-Destructed 96 | . . . . . . . . . 14 1 16 . . . . 17 . 11 5 1 10 . 16 5 . . . . . Prevented 5 | . . . . . . . . . 1 . . . . . . . . . . . 2 . 1 1 . . . . . Kills | -11 -10 -10 -10 -9 -8 -8 -8 -7 -7 -7 -6 -6 -6 -6 -6 -5 -5 -5 -5 -5 -4 -4 -4 -4 -3 -3 -2 -2 -1 ------- Run | Yrd Mat Min Exi Min Mat Gar Mat Fac Low Zio Pro Fac Low Low Dat Pro Fac Upp Upp Zhi Pro Fac Upp Upp Res Qua Res DSF Acc Combat Hostiles Destroyed 323 | . 6 8 . 11 16 25 2 12 4 . 9 25 . 1 . 9 19 8 3 . 14 19 12 13 15 92 . . . Guns 6 | . 6 . . . . . . . . . . . . . . . . . . . . . . . . . . . . Cannons 132 | . . 8 . 3 16 11 2 12 4 . . 18 . . . 8 10 3 3 . 4 7 1 2 12 8 . . . AOE 176 | . . . . 8 . 14 . . . . 8 6 . . . . 9 4 . . 10 11 10 11 3 82 . . . Classes Destroyed 26 | 1 6 . . 2 2 2 . 2 . . 1 1 . 1 . 2 . . . . 1 . . . . 5 . . . Worker 6 | . . . . . 1 . . . . . . 2 . . . . 1 . . . . . . . 1 . 1 . . Builder 10 | . 1 . . 1 2 . . . . . . 2 . . . . 2 . . . . 2 . . . . . . . Tunneler 3 | 1 . . . 1 . . . . . . . . . . . . . . . . . 1 . . . . . . . Hauler 11 | . 1 . . . 3 . 2 . . . . 5 . . . . . . . . . . . . . . . . . Recycler 17 | . . . . 1 3 . . 1 . . . 5 . . . . 1 . . . . 3 . . 3 . . . . Minesweeper 1 | . . . . . . . . . . . . . . . . . . . . . 1 . . . . . . . . Mechanic 7 | . . . . . . . . . . . . . . . . . . . . . . . . . . 7 . . . Operator 6 | . 1 . . . 2 . 1 . . . . 1 . . . . . . . . . . . . . . . . 1 Watcher 5 | . 1 . . . 1 . . . . . . 2 . . . . 1 . . . . . . . . . . . . Swarmer 67 | . 3 . . 3 4 8 1 . 2 . 4 7 . . . . 5 1 . . 5 6 7 5 6 . . . . Saboteur 9 | . . . . . . . . . . . . . . . . . . . . . . . . . . 9 . . . Grunt 121 | . 3 8 . 2 8 11 . 3 1 . 3 8 . . . . 10 1 . . 3 10 3 5 2 40 . . . Brawler 11 | . . . . . . . . 1 . . 1 . . . . . . 2 . . . . . . . 7 . . . Duelist 14 | . . . . . . 1 . . . . . . . . . . . 2 1 . . . . . 1 9 . . . Protector 8 | . . . . . . . . . . . . . . . . 3 1 . . . . . . . . 4 . . . Sentry 23 | . . . . . 4 3 1 4 1 . . 2 . . . 2 . 1 1 . 1 . 1 1 1 . . . . Demolisher 3 | . . . . . . . . . . . . . . . . 3 . . . . . . . . . . . . . Specialist 3 | . . . . . . 3 . . . . . . . . . . . . . . . . . . . . . . . Hunter 16 | . . . . . . . . . . . . 1 . . . . 1 . 1 . 4 . 1 . . 8 . . . Programmer 34 | . . . . . . . . 4 . . . 7 . . . . 2 . . . 1 2 . 2 5 11 . . . Behemoth 4 | . . . . . . . . . . . 1 . . . . 1 . 1 . . . 1 . . . . . . . Investigator 1 | . . . . . . . . . . . . . . . . . . . . . . . . . . 1 . . . Striker 2 | . . . . . . . . . . . . . . . . . . . . . . . . . . 2 . . . Executioner 2 | . . . . . . . . . . . . . . . . . . . . . . . . . . 2 . . . Packrat 7 | . . . . . . . . . . . . . 3 3 . . . 1 . . . . . . . . . . . Assembled 6 | . . . . 6 . . . . . . . . . . . . . . . . . . . . . . . . . Mutant 1 | . . . . . . . . . . . . . . 1 . . . . . . . . . . . . . . . Best Kill Streak 35 | 1 6 2 . 4 8 7 3 3 2 . 4 7 . 1 . 2 10 7 2 . 5 13 5 6 3 35 1 . 1 Combat Bots Only 31 | . 4 2 . 3 5 7 1 3 2 . 4 4 . 1 . 2 8 7 2 . 5 10 5 6 3 31 . . . Max Kills in Single Turn 7 | 1 2 2 . 3 2 3 1 1 1 . 2 3 1 1 . 1 5 2 1 . 5 2 4 3 3 7 1 . 1 Gunslinging . | . . . . . . . . . . . . . . . . . . . . . . . . . . . . . . Exploded 7 | . . . . 3 . 3 . . . . 2 2 . . . . 5 2 . . 5 2 4 3 3 7 . . . Melee . | . . . . . . . . . . . . . . . . . . . . . . . . . . . . . . Uniques/NPCs Destroyed . | . . . . . . . . . . . . . . . . . . . . . . . . . . . . . . Combat | -11 -10 -10 -10 -9 -8 -8 -8 -7 -7 -7 -6 -6 -6 -6 -6 -5 -5 -5 -5 -5 -4 -4 -4 -4 -3 -3 -2 -2 -1 -------- Run | Yrd Mat Min Exi Min Mat Gar Mat Fac Low Zio Pro Fac Low Low Dat Pro Fac Upp Upp Zhi Pro Fac Upp Upp Res Qua Res DSF Acc Hostile Shots Fired 1627 | . 15 12 . 45 106 85 2 103 32 . 49 148 . 10 . 19 65 37 8 . 70 97 17 24 44 316 . 65 258 Missed 541 | . 3 4 . 14 33 17 2 34 14 . 13 47 . 2 . 6 15 11 2 . 34 30 9 8 18 106 . 22 97 Hits 1086 | . 12 8 . 31 73 68 . 69 18 . 36 101 . 8 . 13 50 26 6 . 36 67 8 16 26 210 . 43 161 Melee 36 | . . . . . . . . . . . . . . . . . . 1 . . . . . . . 35 . . . Projectile 1050 | . 12 8 . 31 73 68 . 69 18 . 36 101 . 8 . 13 50 25 6 . 36 67 8 16 26 175 . 43 161 AOE 11 | . . . . 3 . . . . . . . . . . . 7 . . . . . . . . . 1 . . . Critical Strikes 41 | . . . . 2 3 3 . . . . . 2 . . . . . 1 . . . 3 . . 1 19 . 1 6 Actively Blocked 9 | . . . . . . . . . . . . . . . . . . . . . . . . . . 2 . 1 6 Part Disruptions 3 | . . . . . . . . . . . . . . 1 . . . . . . . 1 . . . 1 . . . Damage Taken 17489 | . 115 118 . 620 713 1029 . 307 85 . 873 1188 . 56 . 467 705 455 80 . 416 1042 195 229 378 4048 . 1483 2887 Core 3443 | . . 17 . 94 68 131 . 21 9 . 93 117 . . . 81 29 39 . . 43 90 21 63 29 652 . 234 1612 Absorbed by Shields 4283 | . . . . . 244 205 . 260 60 . 44 310 . 23 . 18 232 163 30 . 128 69 . . 178 2153 . 166 . Reduced by Siege Mode 225 | . . . . . . . . . . . . . . . . . . . . . . . . . . 225 . . . Redirected to Shielding 336 | . . . . . . . . . . . . . . . . 12 . 23 . . . . . . . 301 . . . Ignored by Resistances 581 | . . . . . . . . . 8 . . . . . . . . 33 14 . 124 97 8 45 53 . . . 199 Regen/Repaired (Parts) 755 | . . . . . . . . . . . . 499 . . . . . . . . . 256 . . . . . . . Core Remaining (%) 74 | 100 . . . 55 . . 63 . . . 82 . . . . 76 . . . . 88 . . 84 . 42 . 83 . Volleys Fired 849 | 1 28 20 . 20 78 63 11 30 21 . 11 119 14 16 . 52 53 12 6 . 30 53 12 19 54 109 3 7 7 Largest 2 | 1 2 2 . 2 2 2 2 2 2 . 2 2 1 2 . 1 2 2 2 . 2 2 2 2 2 2 2 2 1 Hottest 218 | 20 80 100 . 60 115 115 115 80 80 . 80 80 50 138 . 50 91 80 80 . 80 80 80 80 80 138 152 218 58 Shots Fired 1240 | 1 50 33 . 29 139 92 16 60 28 . 13 152 14 19 . 53 98 22 14 . 48 83 13 27 93 118 4 14 7 Gun 51 | 1 50 . . . . . . . . . . . . . . . . . . . . . . . . . . . . Cannon 1045 | . . 28 . 18 139 75 16 60 28 . 7 146 14 19 . 53 93 19 14 . 41 74 7 16 92 61 4 14 7 Launcher 139 | . . . . 11 . 17 . . . . 6 6 . . . . 5 3 . . 7 9 6 11 1 57 . . . Special 5 | . . 5 . . . . . . . . . . . . . . . . . . . . . . . . . . . Kinetic 902 | 1 16 28 . 18 74 55 8 60 28 . 7 146 14 14 . 53 92 19 14 . 36 74 2 16 92 23 1 4 7 Thermal 121 | . . 5 . . 65 20 8 . . . . . . . . . 1 . . . . . . . . 9 3 10 . Explosive 139 | . . . . 11 . 17 . . . . 6 6 . . . . 5 3 . . 7 9 6 11 1 57 . . . Electromagnetic 78 | . 34 . . . . . . . . . . . . 5 . . . . . . 5 . 5 . . 29 . . . Robot Hit Streak 32 | 1 5 11 . 5 12 11 4 13 9 . 5 9 2 6 . 9 11 7 6 . 13 9 6 8 13 32 3 16 . Robot Miss Streak 7 | . 3 2 . 2 7 3 1 1 2 . 1 4 3 1 . 3 4 2 3 . 4 2 1 1 3 3 . 1 . Penetration Max 1 | . . . . . . . . . . . . . . 1 . . 1 . . . . . . . 1 . . . . Secondary Targets . | . . . . . . . . . . . . . . . . . . . . . . . . . . . . . . Capacitor 1 | . . . . . . . . . . . . . . . . . . . . . . . . . . 1 . . . Shots Hit Robots 745 | 1 28 17 4 11 90 54 10 47 13 1 14 83 4 15 1 34 51 15 7 4 26 42 9 7 51 91 1 13 1 Core Hits 748 | 1 14 12 . 23 35 40 5 20 8 . 15 53 3 3 . 19 51 18 8 . 28 37 23 22 30 275 1 3 1 Critical Kills . | . . . . . . . . . . . . . . . . . . . . . . . . . . . . . . Critical Parts Destroyed . | . . . . . . . . . . . . . . . . . . . . . . . . . . . . . . Critical Strikes 62 | . . . . . 1 4 . 3 2 . 1 18 1 1 . 3 11 1 1 . 2 3 . . 9 1 . . . Blast 62 | . . . . . 1 4 . 3 2 . 1 18 1 1 . 3 11 1 1 . 2 3 . . 9 1 . . . Melee Attacks 78 | . . . 4 . 2 7 1 7 6 1 10 . . 8 1 1 . 1 . 4 . 6 . . . . . . 19 Impact 6 | . . . . . . . . . 6 . . . . . . . . . . . . . . . . . . . . Slashing . | . . . . . . . . . . . . . . . . . . . . . . . . . . . . . . Piercing 38 | . . . . . . . . . . . 10 . . . . 1 . 1 . 1 . 6 . . . . . . 19 Sneak Attacks 35 | . . . 4 . 2 7 1 7 . 1 . . . 8 1 . . . . 3 . . . . . . . . 1 Combat Hostiles . | . . . . . . . . . . . . . . . . . . . . . . . . . . . . . . Follow-up Attacks . | . . . . . . . . . . . . . . . . . . . . . . . . . . . . . . Damage Inflicted 57376 | 10 371 327 . 762 2336 2634 255 1224 426 . 1324 4436 270 347 . 1741 3000 1059 317 . 2153 2943 1373 2098 2183 25190 37 475 85 Guns 356 | 10 346 . . . . . . . . . . . . . . . . . . . . . . . . . . . . Cannons 20367 | . . 315 . 135 2336 1139 255 1224 426 . 77 3567 270 347 . 1741 1723 422 317 . 640 1281 210 218 1913 1299 37 475 . Explosions 36258 | . 24 . . 609 . 1495 . . . . 968 869 . . . . 1277 637 . . 1513 1662 1163 1880 270 23891 . . . Melee 364 | . . . . . . . . . . . 279 . . . . . . . . . . . . . . . . . 85 Ramming 31 | . 1 12 . 18 . . . . . . . . . . . . . . . . . . . . . . . . . Kinetic 17443 | 10 79 315 . 135 1275 906 124 1224 426 . 77 3567 270 228 . 1741 1723 422 317 . 517 1281 83 218 1913 451 . 141 . Thermal 3134 | . 24 . . . 1061 233 131 . . . . . . . . . 75 . . . . . . . . 1239 37 334 . Explosive 34896 | . . . . 609 . 1495 . . . . 968 869 . . . . 1022 637 . . 1513 1662 1163 1880 270 22808 . . . Electromagnetic 1508 | . 267 . . . . . . . . . . . . 119 . . 180 . . . 123 . 127 . . 692 . . . Impact . | . . . . . . . . . . . . . . . . . . . . . . . . . . . . . . Slashing . | . . . . . . . . . . . . . . . . . . . . . . . . . . . . . . Piercing 364 | . . . . . . . . . . . 279 . . . . . . . . . . . . . . . . . 85 Highest Corruption 11 | . 2 2 2 2 2 2 2 . . . . 2 1 3 3 3 2 2 2 2 8 . . 11 1 10 . 1 . Average Corruption 2 | . 2 2 2 2 2 2 2 . . . . 1 1 1 3 3 1 2 2 2 4 . . 1 1 3 . 1 . Corruption Purged 2 | . . . . . . . . . . . . 2 . . . . . . . . . . . . . . . . . Corruption Blocked . | . . . . . . . . . . . . . . . . . . . . . . . . . . . . . . Effects 168 | . 2 6 6 5 4 13 12 . . . . 5 6 6 3 20 6 9 12 8 22 . . 9 . 13 . 1 . Message Errors 36 | . . . . 1 1 2 2 . . . . 2 4 . 1 3 1 3 4 4 3 . . 2 . 2 . 1 . Matter Fused 44 | . 1 2 2 2 . 3 2 . . . . 1 1 1 . 3 3 1 2 2 10 . . 3 . 5 . . . Heat Flow Errors 17 | . 1 1 1 . . 2 1 . . . . . 1 1 . 3 . 2 2 . 1 . . . . 1 . . . Energy Discharges 25 | . . . 2 1 1 2 2 . . . . 1 . . 1 5 1 . . 2 3 . . 2 . 2 . . . Parts Rejected 2 | . . . . . . . . . . . . . . . . 1 1 . . . . . . . . . . . . Parts Fused 1 | . . . . . . 1 . . . . . . . . . . . . . . . . . . . . . . . Data Loss (minor) 24 | . . 2 1 1 1 3 3 . . . . 1 . 1 . 2 . 1 1 . 4 . . 2 . 1 . . . Data Loss (major) 6 | . . . . . . . . . . . . . . . 1 2 . 1 1 . 1 . . . . . . . . Misfires 6 | . . . . . 1 . . . . . . . . 1 . 1 . 1 2 . . . . . . . . . . Alerts 2 | . . 1 . . . . . . . . . . . 1 . . . . . . . . . . . . . . . Weapon Failures 5 | . . . . . . . 2 . . . . . . 1 . . . . . . . . . . . 2 . . . Overload Shots . | . . . . . . . . . . . . . . . . . . . . . . . . . . . . . . Overflow Damage 1769 | . . . . 19 102 55 20 6 . . 61 261 91 98 . 14 11 100 . . 80 63 2 143 26 617 . . . Projectiles 827 | . . . . . 102 18 20 6 . . . 255 91 98 . 14 6 53 . . 18 28 . 39 26 53 . . . Explosions 910 | . . . . 19 . 37 . . . . 29 6 . . . . 5 47 . . 62 35 2 104 . 564 . . . Melee 32 | . . . . . . . . . . . 32 . . . . . . . . . . . . . . . . . . Knockbacks 111 | . . 4 . . 13 11 . . 3 . . 19 1 1 . 11 13 2 . . 4 6 . 1 18 4 . . . Impact 1 | . . 1 . . . . . . . . . . . . . . . . . . . . . . . . . . . Kinetic 103 | . . 3 . . 12 10 . . 3 . . 17 1 1 . 11 13 2 . . 4 6 . 1 15 4 . . . Secondary 7 | . . . . . 1 1 . . . . . 2 . . . . . . . . . . . . 3 . . . . Self-Inflicted Damage 1056 | . 16 . . 125 . 75 . . . . 60 115 . . . . . . . . 11 . 60 . . 594 . . . Shots 31 | . 1 . . 7 . 5 . . . . 1 2 . . . . . . . . 2 . 2 . . 11 . . . Rammed 13 | . 1 9 . 3 . . . . . . . . . . . . . . . . . . . . . . . . . Targets Rammed 13 | . 1 9 . 3 . . . . . . . . . . . . . . . . . . . . . . . . . Kicked . | . . . . . . . . . . . . . . . . . . . . . . . . . . . . . . Crushed . | . . . . . . . . . . . . . . . . . . . . . . . . . . . . . . Highest Temperature 360 | . 126 165 120 90 13 192 198 . . . . 47 118 261 . 234 360 199 168 . 78 33 42 . . 147 72 234 . Average Temperature 53 | . 42 44 67 35 4 50 118 . . . . 14 21 66 . 63 131 94 82 . 31 15 29 . . 48 45 75 . Received Heat Transfer 2502 | . 24 69 . 99 270 354 . 93 17 . 152 161 . . . . 174 309 6 . 9 160 . 30 27 422 . . 126 Effects 3 | . . . . . . . . . . . . . . 2 . . 1 . . . . . . . . . . . . Interference 2 | . . . . . . . . . . . . . . 2 . . . . . . . . . . . . . . . Short Circuit 1 | . . . . . . . . . . . . . . . . . 1 . . . . . . . . . . . . Siege Activations 1 | . . . . . . . . . . . . . . . . . . . . . . . . . . 1 . . . Total Turns 210 | . . . . . . . . . . . . . . . . . . . . . . . . . . 210 . . . Longest Duration 210 | . . . . . . . . . . . . . . . . . . . . . . . . . . 210 . . . Martial Activations . | . . . . . . . . . . . . . . . . . . . . . . . . . . . . . . Shielding Activations . | . . . . . . . . . . . . . . . . . . . . . . . . . . . . . . Robots Disrupted 1 | . . . . . . . . . . . . . . . . . . . . . . . . . . 1 . . . Combat Hostiles 1 | . . . . . . . . . . . . . . . . . . . . . . . . . . 1 . . . Robots Corrupted 5 | . . . . . . . . . . . . . . 1 . . . . . . 1 . 1 . . 2 . . . Combat Hostiles 4 | . . . . . . . . . . . . . . 1 . . . . . . . . 1 . . 2 . . . Parts Fried 4 | . . . . 2 . . . . . . . 1 . . . . . . . . . . 1 . . . . . . Impact Corruptions . | . . . . . . . . . . . . . . . . . . . . . . . . . . . . . . Robots Melted . | . . . . . . . . . . . . . . . . . . . . . . . . . . . . . . Combat Hostiles . | . . . . . . . . . . . . . . . . . . . . . . . . . . . . . . Parts Melted 4 | . . . . . 3 . . . . . . . . . . 1 . . . . . . . . . . . . . Heat Transferred 3653 | . 50 . . . 1517 333 185 . . . . . . . . . 100 . . . . . . . . 1098 37 333 . Parts Sabotaged . | . . . . . . . . . . . . . . . . . . . . . . . . . . . . . . Parts Stolen . | . . . . . . . . . . . . . . . . . . . . . . . . . . . . . . Parts Stripped . | . . . . . . . . . . . . . . . . . . . . . . . . . . . . . . Power Chain Reactions 8 | . 1 . . . . . . . . . . . . . . . 2 . . . . . 1 . . 4 . . . Alert | -11 -10 -10 -10 -9 -8 -8 -8 -7 -7 -7 -6 -6 -6 -6 -6 -5 -5 -5 -5 -5 -4 -4 -4 -4 -3 -3 -2 -2 -1 ------- Run | Yrd Mat Min Exi Min Mat Gar Mat Fac Low Zio Pro Fac Low Low Dat Pro Fac Upp Upp Zhi Pro Fac Upp Upp Res Qua Res DSF Acc Maximum Alert Level 5 | . . . . . 1 4 2 . . . . 2 . . . . 4 . . . . 2 . . 1 5 5 4 3 Low Security (%) 63 | 100 100 100 . 100 65 7 67 100 . . . 63 . . . . 33 . . . . 89 . . 93 . . . . Level 1 11 | . . . . . 34 22 . . . . . 20 . . . . 24 . . . . 3 . . 6 . . . . Level 2 7 | . . . . . . 9 32 . . . . 15 . . . . 13 . . . . 7 . . . . . . 15 Level 3 8 | . . . . . . 45 . . . . . . . . . . 28 . . . . . . . . . . . 84 Level 4 2 | . . . . . . 14 . . . . . . . . . . . . . . . . . . . . . 100 . Level 5 1 | . . . . . . . . . . . . . . . . . . . . . . . . . . . 100 . . High Security . | . . . . . . . . . . . . . . . . . . . . . . . . . . . . . . Max Security 4 | . . . . . . . . . . . . . . . . . . . . . . . . . . 99 . . . Peak Influence 3927 | 5 143 140 . 100 248 1123 547 98 . . . 656 . . . . 1101 . . . . 559 . . 220 3927 2184 1324 1097 Initial 2184 | . . 13 . . 21 150 547 19 . . . . . . . . 23 . . . . 25 . . 12 102 2184 1324 756 Average 383 | . 62 56 . 50 119 655 197 23 . . . 199 . . . . 423 . . . . 118 . . 112 2914 1853 1297 831 Influence Increases 12083 | 5 240 201 . 195 696 1033 253 407 80 . 230 1237 . . . 283 1399 170 105 5 326 897 250 295 558 2423 32 18 745 Destroy 0b10 Robot/C 6780 | . 120 160 . 100 320 560 160 240 80 . 180 500 . . . 200 600 160 80 . 280 380 240 260 300 1780 . . 80 Destroy 0b10 Robot/NC 430 | 5 20 . . 15 60 5 20 5 . . 5 85 . . . 15 65 . . 5 5 30 . 5 20 55 5 . 5 Destroy Leader 1016 | . 24 40 . 20 78 10 36 90 . . 30 164 . . . 30 84 10 10 . 30 50 10 30 70 200 . . . Allied During Kill 157 | . . . . . . 18 30 . . . . . . . . 38 45 . 15 . 11 . . . . . . . . Trap Triggered on 0b10 290 | . . . . . . . . 10 . . . 90 . . . . 40 . . . . 110 . . 40 . . . . Successful Hack 430 | . 15 . . . 38 21 . 24 . . . 130 . . . . 40 . . . . 81 . . 18 . 18 . 45 Select Force Hacks 50 | . 30 . . . . . . . . . . 20 . . . . . . . . . . . . . . . . . Disable Machine 630 | . . . . . 135 90 . 30 . . . 105 . . . . 165 . . . . 45 . . 15 30 . . 15 Anti-Garrison Action 400 | . . . . . . 250 . . . . . . . . . . 150 . . . . . . . . . . . . Destroy Structure 1180 | . 1 1 . 60 20 34 7 8 . . . 128 . . . . 180 . . . . 186 . . 80 358 9 3 105 Partial Spotted 15 | . 15 . . . . . . . . . . . . . . . . . . . . . . . . . . . . Lose Combat Pursuer 705 | . 15 . . . 45 45 . . . . 15 15 . . . . 30 . . . . 15 . . 15 . . 15 495 Influence Decreases 12532 | 5 205 167 69 140 519 142 1332 377 154 . 230 583 521 133 . 245 354 773 438 152 284 385 504 577 394 220 2149 522 958 Entered New Map 4774 | . . 22 69 . 34 82 576 25 29 . . . 243 26 . . 15 401 92 147 . 17 206 57 6 80 1699 442 506 Time Decay 6213 | 5 205 145 . 100 435 . 266 352 125 . 210 563 278 107 . 236 299 362 326 5 264 362 278 510 378 . 140 . 262 Lost Part 599 | . . . . 40 50 20 . . . . 20 10 . . . 9 10 10 . . . . 20 10 10 140 10 80 160 Lost Ally 196 | . . . . . . 40 40 . . . . 10 . . . . 30 . 20 . 20 6 . . . . . . 30 Purge Threat 750 | . . . . . . . 450 . . . . . . . . . . . . . . . . . . . 300 . . Squads Dispatched 92 | . 1 1 . 1 6 . 2 7 . . . 13 . . . . 9 . . . . 7 . . 3 30 1 2 9 Investigation 19 | . 1 1 . . 2 . 1 1 . . . 3 . . . . 2 . . . . 2 . . 1 . . . 5 Extermination 19 | . . . . . . . . 4 . . . 7 . . . . 1 . . . . 3 . . 2 . . . 2 Reinforcement 17 | . . . . 1 2 . 1 2 . . . 3 . . . . 2 . . . . 2 . . . . . 2 2 Assault 34 | . . . . . . . . . . . . . . . . . 3 . . . . . . . . 30 1 . . Garrison 3 | . . . . . 2 . . . . . . . . . . . 1 . . . . . . . . . . . . Intercept . | . . . . . . . . . . . . . . . . . . . . . . . . . . . . . . Searches Triggered . | . . . . . . . . . . . . . . . . . . . . . . . . . . . . . . Data Miner Redirects 6 | . . . . . . . . . . . . . . . . . 1 . . . . . . . . . 1 . 4 Construction Impeded 3 | . . . . 1 . . . . . . . . . . . . 1 . . . . 1 . . . . . . . Haulers Reinforced 3 | . . . . . . . . . . . . 1 . . . . 1 . . . . 1 . . . . . . . Active Scanning Responses . | . . . . . . . . . . . . . . . . . . . . . . . . . . . . . . Cargo Convoy Interrupts 1 | . . . . . . . . . . . . 1 . . . . . . . . . . . . . . . . . Stealth | -11 -10 -10 -10 -9 -8 -8 -8 -7 -7 -7 -6 -6 -6 -6 -6 -5 -5 -5 -5 -5 -4 -4 -4 -4 -3 -3 -2 -2 -1 --------- Run | Yrd Mat Min Exi Min Mat Gar Mat Fac Low Zio Pro Fac Low Low Dat Pro Fac Upp Upp Zhi Pro Fac Upp Upp Res Qua Res DSF Acc Distress Signals 32 | . 1 . . . 4 . 3 1 . . . 4 . . . 9 4 . . . . 1 1 . . 1 . . 3 Communications Jammed 10 | . . . . . . . . . . . . . . . . . . . . . . 1 . . 9 . . . . Distress Signals 10 | . . . . . . . . . . . . . . . . . . . . . . 1 . . 9 . . . . Times Spotted 495 | . 12 8 . 24 24 23 9 18 8 . 10 35 . 1 . 13 31 8 4 . 7 28 8 11 16 138 . 9 50 Peak Tracking Total 22 | . 4 2 . 13 6 6 6 2 4 . 4 5 . 1 . 3 8 7 3 . 3 4 4 4 4 22 . 7 17 Tactical Retreats 21 | . 1 . . 2 1 1 . . . . 1 1 . . . . 2 . . . . 1 . . 1 . . 1 9 Traps | -11 -10 -10 -10 -9 -8 -8 -8 -7 -7 -7 -6 -6 -6 -6 -6 -5 -5 -5 -5 -5 -4 -4 -4 -4 -3 -3 -2 -2 -1 ------- Run | Yrd Mat Min Exi Min Mat Gar Mat Fac Low Zio Pro Fac Low Low Dat Pro Fac Upp Upp Zhi Pro Fac Upp Upp Res Qua Res DSF Acc Traps Triggered 16 | . 1 . . . 2 7 . 2 . . . . . . . 1 . . . . . . . . . 1 . 2 . Indirectly . | . . . . . . . . . . . . . . . . . . . . . . . . . . . . . . Trap Hack Attempts 30 | . . . . . 25 . . 5 . . . . . . . . . . . . . . . . . . . . . Triggered . | . . . . . . . . . . . . . . . . . . . . . . . . . . . . . . Disarmed 1 | . . . . . 1 . . . . . . . . . . . . . . . . . . . . . . . . Reprogrammed 1 | . . . . . . . . 1 . . . . . . . . . . . . . . . . . . . . . Reused 29 | . . . . . . . . 1 . . . 9 . . . . 4 . . . . 11 . . 4 . . . . Traps Reconfigurated 74 | . . . . . . . . . . . . 33 . . . . 6 . . . . 31 . . 4 . . . . Traps Extracted . | . . . . . . . . . . . . . . . . . . . . . . . . . . . . . . Installed 2 | . . . . . . . . . . . . . . . . . . . . . . 2 . . . . . . . Triggered 29 | . . . . . . . . 1 . . . 9 . . . . 4 . . . . 11 . . 4 . . . . Most Traps Carried 5 | . . . . . . . . . . . . . . . . . . . . . 5 5 3 3 3 . . . . Machines | -11 -10 -10 -10 -9 -8 -8 -8 -7 -7 -7 -6 -6 -6 -6 -6 -5 -5 -5 -5 -5 -4 -4 -4 -4 -3 -3 -2 -2 -1 ---------- Run | Yrd Mat Min Exi Min Mat Gar Mat Fac Low Zio Pro Fac Low Low Dat Pro Fac Upp Upp Zhi Pro Fac Upp Upp Res Qua Res DSF Acc Machines Disabled 49 | . . . . . 9 9 . 2 . . . 7 . . . 3 12 . . . . 3 . . 1 2 . . 1 Max in Single Turn 4 | . . . . . 1 1 . 1 . . . 3 . . . 1 4 . . . . 2 . . 1 1 . . . Garrison Access 5 | . . . . . . . . . . . . . . . . . 1 . . . . 1 . . 1 . 1 . 1 Garrison Relay 3 | . . . . . . 3 . . . . . . . . . . . . . . . . . . . . . . . Machines Repaired . | . . . . . . . . . . . . . . . . . . . . . . . . . . . . . . Machines Dismantled . | . . . . . . . . . . . . . . . . . . . . . . . . . . . . . . Machines Sabotaged . | . . . . . . . . . . . . . . . . . . . . . . . . . . . . . . Overloaded Fab Kills . | . . . . . . . . . . . . . . . . . . . . . . . . . . . . . . Hacking | -11 -10 -10 -10 -9 -8 -8 -8 -7 -7 -7 -6 -6 -6 -6 -6 -5 -5 -5 -5 -5 -4 -4 -4 -4 -3 -3 -2 -2 -1 --------- Run | Yrd Mat Min Exi Min Mat Gar Mat Fac Low Zio Pro Fac Low Low Dat Pro Fac Upp Upp Zhi Pro Fac Upp Upp Res Qua Res DSF Acc Machines Accessed 93 | . 4 1 2 . 5 2 3 9 1 1 . 21 . 1 3 . 9 . . 4 . 11 . . 5 . 3 . 8 Terminals 47 | . 2 . . . 3 2 3 4 1 . . 13 . . . . 4 . . . . 5 . . 3 . 2 . 5 Fabricators 11 | . . . . . . . . 1 . . . 4 . . . . 1 . . . . 3 . . 1 . . . 1 Repair Stations 9 | . 1 . . . . . . 1 . . . 3 . . . . 2 . . . . 2 . . . . . . . Recycling Units 5 | . 1 . . . . . . 2 . . . . . . . . 1 . . . . . . . . . . . 1 Scanalyzers 3 | . . . . . 1 . . 1 . . . 1 . . . . . . . . . . . . . . . . . Garrison Access 6 | . . . . . 1 . . . . . . . . . . . 1 . . . . 1 . . 1 . 1 . 1 Total Hacks 301 | . 7 1 2 . 20 3 12 19 3 3 . 68 . 1 23 . 39 . . 17 . 44 . . 10 . 7 . 22 Successful 185 | . 4 1 2 . 12 2 5 9 3 3 . 40 . 1 23 . 17 . . 17 . 29 . . 4 . 5 . 8 Failed 116 | . 3 . . . 8 1 7 10 . . . 28 . . . . 22 . . . . 15 . . 6 . 2 . 14 Catastrophic 21 | . 2 . . . 1 . . 3 . . . 3 . . . . 1 . . . . 4 . . 3 . . . 4 Database Lockouts . | . . . . . . . . . . . . . . . . . . . . . . . . . . . . . . Manual 120 | . 5 . 1 . 10 . 5 9 . . . 35 . . . . 24 . . . . 20 . . 2 . . . 9 Terminals 159 | . 5 . . . 14 3 12 9 3 . . 44 . . . . 23 . . . . 20 . . 6 . 4 . 16 Fabricators 33 | . . . . . . . . 2 . . . 12 . . . . 2 . . . . 11 . . 2 . . . 4 Repair Stations 26 | . 1 . . . . . . 1 . . . 7 . . . . 6 . . . . 11 . . . . . . . Recycling Units 12 | . 1 . . . . . . 5 . . . . . . . . 5 . . . . . . . . . . . 1 Scanalyzers 11 | . . . . . 4 . . 2 . . . 5 . . . . . . . . . . . . . . . . . Garrison Access 13 | . . . . . 2 . . . . . . . . . . . 3 . . . . 2 . . 2 . 3 . 1 Terminal Hacks 97 | . 1 1 2 . 5 2 4 . 3 3 . 17 . 1 23 . 7 . . 17 . 4 . . 1 . 4 . 2 Record 15 | . . . 1 . . . . . 3 . . . . . 6 . . . . 5 . . . . . . . . . Part Schematic 23 | . . . . . 1 . . . . 3 . 4 . . 9 . 1 . . 4 . 1 . . . . . . . Robot Schematic 5 | . . . . . . . . . . . . . . . 5 . . . . . . . . . . . . . . Robot Analysis 16 | . . . . . 3 . . . . . . 5 . . . . 3 . . 4 . 1 . . . . . . . Prototype ID Bank 9 | . . . . . . . . . . . . 1 . . 3 . . . . 4 . 1 . . . . . . . Open Door 3 | . . 1 . . . 1 . . . . . . . 1 . . . . . . . . . . . . . . . Open DSF 1 | . . . . . . . . . . . . . . . . . . . . . . . . . . . 1 . . Level Access Points 2 | . . . . . . . . . . . . . . . . . . . . . . . . . . . 1 . 1 Branch Access Points 2 | . . . . . . . . . . . . . . . . . 1 . . . . 1 . . . . . . . Emergency Access Points 2 | . . . . . . 1 . . . . . 1 . . . . . . . . . . . . . . . . . Machine Index 1 | . . . . . . . . . . . . . . . . . 1 . . . . . . . . . . . . Garrison Index 1 | . . . . . . . . . . . . 1 . . . . . . . . . . . . . . . . . Unreport Threat 5 | . . . . . . . 3 . . . . . . . . . . . . . . . . . . . 2 . . Locate Traps 2 | . 1 . . . 1 . . . . . . . . . . . . . . . . . . . . . . . . Recall Investigation 1 | . . . . . . . . . . . . . . . . . . . . . . . . . 1 . . . . Recall Extermination 2 | . . . . . . . . . . . . 1 . . . . . . . . . . . . . . . . 1 Registered Components 2 | . . . . . . . 1 . . . . . . . . . 1 . . . . . . . . . . . . Zone Layout 4 | . . . . . . . . . . . . 4 . . . . . . . . . . . . . . . . . Proto ID Catalog 1 | . . . 1 . . . . . . . . . . . . . . . . . . . . . . . . . . Fabricator Hacks 16 | . . . . . . . . . . . . 6 . . . . 2 . . . . 5 . . 2 . . . 1 Network Status 3 | . . . . . . . . . . . . 2 . . . . . . . . . 1 . . . . . . . Load Schematic 6 | . . . . . . . . . . . . 2 . . . . 1 . . . . 2 . . 1 . . . . Build 7 | . . . . . . . . . . . . 2 . . . . 1 . . . . 2 . . 1 . . . 1 Repair Station Hacks 17 | . 1 . . . . . . . . . . 5 . . . . 1 . . . . 10 . . . . . . . Scan Component 9 | . . . . . . . . . . . . 3 . . . . 1 . . . . 5 . . . . . . . Repair 7 | . . . . . . . . . . . . 2 . . . . . . . . . 5 . . . . . . . Refit 1 | . 1 . . . . . . . . . . . . . . . . . . . . . . . . . . . . Recycling Unit Hacks 6 | . . . . . . . . 4 . . . . . . . . 1 . . . . . . . . . . . 1 Process 2 | . . . . . . . . 2 . . . . . . . . . . . . . . . . . . . . . Retrieve Matter 2 | . . . . . . . . 2 . . . . . . . . . . . . . . . . . . . . . Retrieve Components 2 | . . . . . . . . . . . . . . . . . 1 . . . . . . . . . . . 1 Scanalyzer 8 | . . . . . 3 . . . . . . 5 . . . . . . . . . . . . . . . . . Insert Component 4 | . . . . . 2 . . . . . . 2 . . . . . . . . . . . . . . . . . Analyze 4 | . . . . . 1 . . . . . . 3 . . . . . . . . . . . . . . . . . Garrison Access Hacks 5 | . . . . . 1 . . . . . . . . . . . . . . . . 1 . . 1 . 1 . 1 Unlock Access 1 | . . . . . 1 . . . . . . . . . . . . . . . . . . . . . . . . Seal Access 4 | . . . . . . . . . . . . . . . . . . . . . . 1 . . 1 . 1 . 1 Unauthorized Hacks 36 | . 2 . . . 3 . 1 5 . . . 7 . . . . 6 . . . . 9 . . . . . . 3 Terminals 19 | . 1 . . . 2 . 1 3 . . . 3 . . . . 2 . . . . 4 . . . . . . 3 Assimilate 4 | . . . . . . . . 1 . . . 1 . . . . . . . . . 1 . . . . . . 1 Botnet 11 | . 1 . . . 1 . 1 1 . . . 2 . . . . 2 . . . . 2 . . . . . . 1 Disrupt 1 | . . . . . 1 . . . . . . . . . . . . . . . . . . . . . . . . Operators 2 | . . . . . . . . 1 . . . . . . . . . . . . . 1 . . . . . . . Sabotage 1 | . . . . . . . . . . . . . . . . . . . . . . . . . . . . . 1 Fabricators 10 | . . . . . . . . 1 . . . 4 . . . . . . . . . 5 . . . . . . . Prioritize 3 | . . . . . . . . . . . . 2 . . . . . . . . . 1 . . . . . . . Liberate 5 | . . . . . . . . 1 . . . 1 . . . . . . . . . 3 . . . . . . . Haulers 1 | . . . . . . . . . . . . . . . . . . . . . . 1 . . . . . . . Download 1 | . . . . . . . . . . . . 1 . . . . . . . . . . . . . . . . . Repair Stations . | . . . . . . . . . . . . . . . . . . . . . . . . . . . . . . Recycling Units 4 | . 1 . . . . . . 1 . . . . . . . . 2 . . . . . . . . . . . . Reject 2 | . . . . . . . . 1 . . . . . . . . 1 . . . . . . . . . . . . Mask 1 | . . . . . . . . . . . . . . . . . 1 . . . . . . . . . . . . Tunnel 1 | . 1 . . . . . . . . . . . . . . . . . . . . . . . . . . . . Scanalyzers . | . . . . . . . . . . . . . . . . . . . . . . . . . . . . . . Garrison Access 3 | . . . . . 1 . . . . . . . . . . . 2 . . . . . . . . . . . . Reprogram 2 | . . . . . 1 . . . . . . . . . . . 1 . . . . . . . . . . . . Watchers 1 | . . . . . . . . . . . . . . . . . 1 . . . . . . . . . . . . Data Cores Recovered 1 | . . . . . . . . . . . . 1 . . . . . . . . . . . . . . . . . Used 1 | . . . . . . . . . . . . 1 . . . . . . . . . . . . . . . . . Hacking Detections 64 | . 2 . . . 4 1 3 8 1 . . 18 . . . . 7 . . . . 8 . . 4 . 2 . 6 Full Trace Events 12 | . 1 . . . . . . . 1 . . 2 . . . . 1 . . . . 2 . . 1 . . . 4 Feedback Events . | . . . . . . . . . . . . . . . . . . . . . . . . . . . . . . Feedback Blocked 1 | . . . . . . . . . . . . . . . . . . . . . . . . . . . . . 1 Robot Schematics Acquired 6 | . . . . . . . . . . . . 1 . . 5 . . . . . . . . . . . . . . Robots Built 1 | . . . . . . . . . . . . . . . . . . . . . . . . . . . . . 1 Authchips . | . . . . . . . . . . . . . . . . . . . . . . . . . . . . . . Time 74 | . . . . . . . . . . . . . . . . . . . . . . . . . . . . . 74 Total Robot Build Rating 9 | . . . . . . . . . . . . . . . . . . . . . . . . . . . . . 9 Part Schematics Acquired 26 | . . . . . 2 . . . . 3 . 6 . . 9 . 1 . . 4 . 1 . . . . . . . Parts Built 9 | . . . . . . . . . . . . 3 . . . . 2 . . . . 3 . . 1 . . . . Authchips 1 | . . . . . . . . . . . . 1 . . . . . . . . . . . . . . . . . Time 292 | . . . . . . . . . . . . 95 . . . . 58 . . . . 77 . . 62 . . . . Total Part Build Rating 54 | . . . . . . . . . . . . 16 . . . . 14 . . . . 17 . . 7 . . . . Parts Repaired 7 | . . . . . . . . . . . . 2 . . . . . . . . . 5 . . . . . . . Time 251 | . . . . . . . . . . . . 63 . . . . . . . . . 188 . . . . . . . Parts Recycled . | . . . . . . . . . . . . . . . . . . . . . . . . . . . . . . Recycled Matter 605 | . . . . . . . . 605 . . . . . . . . . . . . . . . . . . . . . Retrieved Matter 762 | . . . . . . . . 762 . . . . . . . . . . . . . . . . . . . . . Retrieved Components 4 | . . . . . . . . . . . . . . . . . 1 . . . . . . . . . . . 3 Parts Scanalyzed 3 | . . . . . 1 . . . . . . 2 . . . . . . . . . . . . . . . . . Part Schematics Acquired 3 | . . . . . 1 . . . . . . 2 . . . . . . . . . . . . . . . . . Parts Damaged . | . . . . . . . . . . . . . . . . . . . . . . . . . . . . . . Bothacking | -11 -10 -10 -10 -9 -8 -8 -8 -7 -7 -7 -6 -6 -6 -6 -6 -5 -5 -5 -5 -5 -4 -4 -4 -4 -3 -3 -2 -2 -1 ------------ Run | Yrd Mat Min Exi Min Mat Gar Mat Fac Low Zio Pro Fac Low Low Dat Pro Fac Upp Upp Zhi Pro Fac Upp Upp Res Qua Res DSF Acc Used RIF Installer . | . . . . . . . . . . . . . . . . . . . . . . . . . . . . . . Robots Hacked 16 | . . . 4 . 2 . . 5 . 1 . . . . 1 . . . . 3 . . . . . . . . . Non-combat 9 | . . . 3 . 2 . . 4 . . . . . . . . . . . . . . . . . . . . . Combat 7 | . . . 1 . . . . 1 . 1 . . . . 1 . . . . 3 . . . . . . . . . Robot Hacks Applied 18 | . . . 4 . 2 . . 7 . 1 . . . . 1 . . . . 3 . . . . . . . . . parse_system 10 | . . . 4 . . . . 1 . 1 . . . . 1 . . . . 3 . . . . . . . . . no_distress 4 | . . . . . 2 . . 2 . . . . . . . . . . . . . . . . . . . . . find_chute 1 | . . . . . . . . 1 . . . . . . . . . . . . . . . . . . . . . find_recycling 3 | . . . . . . . . 3 . . . . . . . . . . . . . . . . . . . . . Relay Couplers Released 17 | . . . . . . 12 . 3 . . . . . . . . 2 . . . . . . . . . . . . Machine Destruction 14 | . . . . . . 12 . . . . . . . . . . 2 . . . . . . . . . . . . Programmers 3 | . . . . . . . . 3 . . . . . . . . . . . . . . . . . . . . . Fabnet Peak Effective % . | . . . . . . . . . . . . . . . . . . . . . . . . . . . . . . Robots Rewired 12 | . . . . . . 4 . . . . . . . 4 . 2 . 2 . . . . . . . . . . . Allies Hacked 1 | . . . . . . . . . . . . . . . . . 1 . . . . . . . . . . . . Hacks Repelled . | . . . . . . . . . . . . . . . . . . . . . . . . . . . . . . Allies | -11 -10 -10 -10 -9 -8 -8 -8 -7 -7 -7 -6 -6 -6 -6 -6 -5 -5 -5 -5 -5 -4 -4 -4 -4 -3 -3 -2 -2 -1 -------- Run | Yrd Mat Min Exi Min Mat Gar Mat Fac Low Zio Pro Fac Low Low Dat Pro Fac Upp Upp Zhi Pro Fac Upp Upp Res Qua Res DSF Acc Total Allies 24 | . . . . . 2 4 . 1 . . . 4 . 4 . 2 2 2 . . . 1 . . . . . . 2 Largest Group 5 | . . . . . 2 4 3 1 1 1 1 4 1 5 5 5 3 2 2 1 1 1 . . . . . . 1 Highest-Rated Group 145 | . . . . . 30 113 82 26 26 26 26 113 26 145 145 145 124 79 79 30 30 10 . . . . . . 67 Highest-Rated Ally 67 | . . . . . 15 31 31 26 26 26 26 29 26 30 30 49 49 49 49 30 30 10 . . . . . . 67 Initial Warlord ECA Mod 34 | . . . . . . . 5 4 4 4 3 3 2 2 2 1 1 1 1 1 . . . . . . . . . Warlord Squad Rendezvous 1 | . . . . . . . . . . . . 1 . . . . . . . . . . . . . . . . . Chimera 1 | . . . . . . . . . . . . 1 . . . . . . . . . . . . . . . . . Total Orders 44 | . . . . . . 2 . 1 2 2 5 3 2 2 2 10 9 . . 2 . 2 . . . . . . . STAY 24 | . . . . . . 1 . 1 1 1 3 2 1 1 1 5 5 . . 1 . 1 . . . . . . . FOLLOW 20 | . . . . . . 1 . . 1 1 2 1 1 1 1 5 4 . . 1 . 1 . . . . . . . Ally Attacks 115 | . . . . . . 13 36 . . . . . . . . 28 24 . 9 . . . . . . . . . 5 Total Damage 5327 | . . . . . . 284 534 . . . . . . . . 1189 1755 . 200 . . . . . . . . . 1365 Kills 40 | . . . . . . 3 8 . . . . . . . . 4 20 . 1 . . . . . . . . . 4 Allies Corrupted . | . . . . . . . . . . . . . . . . . . . . . . . . . . . . . . Allies Melted 3 | . . . . . . . . . . . . 1 . . . . 1 . . . . . . . . . . . 1 Intel | -11 -10 -10 -10 -9 -8 -8 -8 -7 -7 -7 -6 -6 -6 -6 -6 -5 -5 -5 -5 -5 -4 -4 -4 -4 -3 -3 -2 -2 -1 ------- Run | Yrd Mat Min Exi Min Mat Gar Mat Fac Low Zio Pro Fac Low Low Dat Pro Fac Upp Upp Zhi Pro Fac Upp Upp Res Qua Res DSF Acc Active Infowar (turns) 12926 | . . . . . . . . . 1455 . 1528 292 603 565 142 993 85 666 729 136 895 1699 611 1383 747 28 285 84 . Optics 2604 | . . . . . . . . . . . . 216 603 565 142 993 85 . . . . . . . . . . . . Sensors 6781 | . . . . . . . . . 1455 . 1528 . 577 384 . 198 . 664 729 136 859 52 199 . . . . . . IFF 844 | . . . . . . . . . . . . . . . . . . . . . . . 376 468 . . . . . Terrain 1993 | . . . . . . . . . . . . . . . . . . . . . . 1499 . . 135 28 285 46 . Traps 63 | . . . . . . . . . . . . . . . . . . . . . . 63 . . . . . . . T.N.C. 76 | . . . . . . . . . . . . 76 . . . . . . . . . . . . . . . . . Jamming 4067 | . . . . . . . . . . . . . . . . . . 2 . . 36 921 611 1383 747 . 283 84 . Robot Analysis Total 16 | . . . . . 3 . . . . . . 5 . . . . 3 . . 4 . 1 . . . . . . . Derelict Logs Recovered 19 | . . 1 . 2 . . . . 2 1 2 . . . . 2 . 1 2 . 2 . 2 2 . . . . . Drone Launches . | . . . . . . . . . . . . . . . . . . . . . . . . . . . . . . Drone Recoveries . | . . . . . . . . . . . . . . . . . . . . . . . . . . . . . . Exploration | -11 -10 -10 -10 -9 -8 -8 -8 -7 -7 -7 -6 -6 -6 -6 -6 -5 -5 -5 -5 -5 -4 -4 -4 -4 -3 -3 -2 -2 -1 ------------- Run | Yrd Mat Min Exi Min Mat Gar Mat Fac Low Zio Pro Fac Low Low Dat Pro Fac Upp Upp Zhi Pro Fac Upp Upp Res Qua Res DSF Acc Turns Passed 29086 | 120 494 479 464 212 1263 1421 638 2408 2176 1538 2321 2980 603 565 142 993 944 832 736 305 958 1731 613 1383 1068 730 285 119 565 Spaces Moved 14718 | 64 241 240 282 91 524 515 223 1122 1167 862 1160 1490 350 299 87 519 417 401 376 156 496 736 341 805 402 188 127 85 952 Core 193 | 2 . . . . . . . . . . . . . . . . . . . . . . . . . . . 59 132 Treads 1711 | 62 241 240 282 87 54 515 223 7 . . . . . . . . . . . . . . . . . . . . . Legs . | . . . . . . . . . . . . . . . . . . . . . . . . . . . . . . Wheels 11994 | . . . . 4 470 . . 1115 1167 862 1160 1490 350 299 87 519 417 401 376 156 496 736 341 805 402 188 127 26 . Hover . | . . . . . . . . . . . . . . . . . . . . . . . . . . . . . . Flight 820 | . . . . . . . . . . . . . . . . . . . . . . . . . . . . . 820 Fastest Speed 40 | 50 160 160 160 95 95 225 232 155 155 155 155 130 160 160 160 160 160 190 190 160 160 160 160 160 175 170 210 50 40 Average Speed 164 | 156 160 160 160 163 132 230 232 178 176 176 189 155 160 160 160 160 168 191 190 180 160 164 160 160 193 196 210 94 41 Slowest Speed 400 | 160 160 160 160 240 225 232 232 400 260 260 255 190 160 160 160 160 190 205 190 190 175 175 175 175 220 205 210 210 120 Overloaded Moves . | . . . . . . . . . . . . . . . . . . . . . . . . . . . . . . Propulsion Burnouts . | . . . . . . . . . . . . . . . . . . . . . . . . . . . . . . Robots Hopped 12 | . . . . . . . . . . . . . . . . . . . . . . . . . . . . . 12 Potential Cave-ins 5 | . . . . . . . . . . . . 2 . . . . . . . . . . . . . . . . 3 Cave-ins Triggered . | . . . . . . . . . . . . . . . . . . . . . . . . . . . . . . Teleports 1 | . . . . . . . . . . . . . . . . . . . . . . . . . . 1 . . . Exploration Rate (%) 50 | 7 35 49 61 24 39 48 30 29 97 85 84 45 63 46 80 69 15 66 65 60 71 23 54 94 13 30 5 90 25 Regions Visited 29 Branch Regions 17 Pre-discovered Areas 10 | . 1 . 1 1 . . . . 1 . 1 . . . 1 . . . . 3 . . . 1 . . . . . Known Exits Taken 17 | . . . . . 1 . . 1 1 1 1 1 1 1 1 1 1 1 1 1 . 1 . . 1 . 1 . . Unknown Exits Taken 10 | 1 1 1 1 1 . . 1 . . . . . . . . . . . . . 1 . 1 1 . 1 . . . Scrap Searched 32 | . . 1 . . . . . . 2 5 3 . 1 2 . 3 . 2 3 . 4 . 4 2 . . . . . Spaces Dug 364 | . . . . 39 1 . . . 9 . 37 58 4 10 . . 3 13 . . . 15 31 6 12 106 3 . 17 Terrain Destroyed 1509 | . 1 1 . 79 19 51 7 8 13 . 77 145 11 12 . 1 56 38 4 . 121 104 106 129 41 464 3 1 17 Melee 18 | . . . . . . . . . 5 . . . . . . . . . . . . 3 . . . . . . 10 Projectile 299 | . . 1 . . 19 2 7 8 8 . 7 46 11 12 . 1 34 9 4 . 20 38 . 12 34 15 3 1 7 AOE 1192 | . 1 . . 79 . 49 . . . . 70 99 . . . . 22 29 . . 101 63 106 117 7 449 . . . Terrain Rammed . | . . . . . . . . . . . . . . . . . . . . . . . . . . . . . . Walls Destroyed . | . . . . . . . . . . . . . . . . . . . . . . . . . . . . . . Machines Disabled . | . . . . . . . . . . . . . . . . . . . . . . . . . . . . . . Actions | -11 -10 -10 -10 -9 -8 -8 -8 -7 -7 -7 -6 -6 -6 -6 -6 -5 -5 -5 -5 -5 -4 -4 -4 -4 -3 -3 -2 -2 -1 --------- Run | Yrd Mat Min Exi Min Mat Gar Mat Fac Low Zio Pro Fac Low Low Dat Pro Fac Upp Upp Zhi Pro Fac Upp Upp Res Qua Res DSF Acc Total 18397 | 79 304 286 296 122 953 653 326 1472 1244 880 1242 1967 371 365 91 628 582 447 389 179 627 1184 397 877 627 479 142 119 1069 Wait 1667 | . 13 8 . 1 248 41 84 233 31 1 26 210 2 13 . 18 73 8 . . 57 281 11 37 109 93 . 2 67 Move 14669 | 63 240 239 281 90 524 514 222 1121 1166 861 1159 1489 349 298 86 518 416 400 375 155 495 735 340 804 401 187 126 84 931 Hop 9 | . . . . . . . . . . . . . . . . . . . . . . . . . . . . . 9 Pick Up 188 | 7 9 5 4 . 21 3 1 26 1 5 4 32 . 3 . 7 6 2 2 2 6 11 4 3 10 8 3 . 3 Fast Attach 129 | 6 2 . 1 . 15 1 1 6 2 . 1 21 2 5 1 4 4 3 1 5 2 16 4 1 8 7 2 2 6 Attach 119 | . . . . 3 4 1 . 1 1 1 4 12 . 6 . 4 5 3 . 1 7 11 7 4 4 22 6 1 11 Detach 91 | . 1 . . . 3 . . 2 1 . 3 13 . 5 2 3 3 2 1 4 5 12 4 2 5 14 . . 6 Swap 269 | 2 3 3 1 4 11 10 3 16 12 5 19 30 2 4 . 8 19 8 3 3 15 37 9 5 17 15 1 1 3 Drop 232 | . 7 2 5 1 22 2 3 23 3 6 5 41 2 7 1 9 3 3 1 5 10 20 6 2 19 5 1 14 4 Fire 849 | 1 28 20 . 20 78 63 11 30 21 . 11 119 14 16 . 52 53 12 6 . 30 53 12 19 54 109 3 7 7 Melee 78 | . . . 4 . 2 7 1 7 6 1 10 . . 8 1 1 . 1 . 4 . 6 . . . . . . 19 Ram . | . . . . . . . . . . . . . . . . . . . . . . . . . . . . . . Kick . | . . . . . . . . . . . . . . . . . . . . . . . . . . . . . . Crush 13 | . 1 9 . 3 . . . . . . . . . . . . . . . . . . . . . . . . . Escape Stasis 40 | . . . . . . 11 . 2 . . . . . . . . . . . . . . . . . 19 . 8 . Rewire 9 | . . . . . . . . . . . . . . . . 4 . 5 . . . . . . . . . . . Trap 32 | . . . . . 25 . . 5 . . . . . . . . . . . . . 2 . . . . . . . Miscellaneous 3 | . . . . . . . . . . . . . . . . . . . . . . . . . . . . . 3 Route ------- -11/Scrapyard -10/Materials -10/Mines (discovered 2 exits: [*Mat] / *Exi) -10/Exiles -9/Mines -8/Materials -8/Garrison (discovered 3 exits: *Mat x3) -8/Materials -7/Factory (discovered 4 exits: *Fac x3 / *Low) -7/Lower Caves (discovered 2 exits: *Low / *Zio) -7/Zion -6/Proximity Caves -6/Factory (discovered 2 exits: Fac / *Low) -6/Lower Caves -6/Lower Caves -6/Data Miner -5/Proximity Caves -5/Factory (discovered 4 exits: *Upp x2 / Ext x2) -5/Upper Caves -5/Upper Caves -5/Zhirov -4/Proximity Caves -4/Factory (discovered 4 exits: *Res x2 / *Upp x2) -4/Upper Caves -4/Upper Caves (discovered 2 exits: *Res / [*War]) -3/Research -3/Quarantine -2/Research (discovered 4 exits: Acc x3 / DSF) -2/DSF -1/Access (discovered 1 exit: Sur) History --------- Turn | Location | Event 34 | -11/Scrapyard | Discovered new exit (range 15) 121 | -11/Scrapyard | Entered Materials 312 | -10/Materials | Build established: Mutant 367 | -10/Materials | Discovered new exit (range 16) 615 | -10/Materials | Entered Mines 696 | -10/Mines | Met a Derelict shopkeep closing up shop 814 | -10/Mines | Learned Materials garrison access intel 888 | -10/Mines | Discovered new exit (range 8) 1046 | -10/Mines | Excavation squad dispatched 1046 | -10/Mines | A large section of the Mines collapsed 1086 | -10/Mines | Deemed a non-threat by the Exiles lab entrance 1086 | -10/Mines | Discovered new exit (range 5) 1094 | -10/Mines | Entered Exiles 1144 | -10/Exiles | Met 8R-AWN 1171 | -10/Exiles | Met EX-HEX 1236 | -10/Exiles | Met EX-DEC 1283 | -10/Exiles | Learned location of Zion (-7) 1310 | -10/Exiles | Met EX-BIN 1334 | -10/Exiles | Aligned with FarCom system 1335 | -10/Exiles | Given EX-Vault access code 1374 | -10/Exiles | Opened EX-Vault 1382 | -10/Exiles | Found Trap Reconfigurator 1415 | -10/Exiles | Warned to stay clear of 0b10 Research branches 1534 | -10/Exiles | Discovered new exit (range 15) 1558 | -10/Exiles | Left Exiles lab with Trap Reconfigurator 1558 | -10/Exiles | Entered Mines 1602 | -9/Mines | Discovered new exit (range 11) 1679 | -9/Mines | Learned Materials security intel 1680 | -9/Mines | Assembled infested the area 1770 | -9/Mines | Entered Materials 1770 | -8/Materials | Evolved 4 slots: Utility x4 1772 | -8/Materials | Loaded intel: 1 garrison access location 1787 | -8/Materials | Lost 4 parts (2n1u1w) 2016 | -8/Materials | Lost 3 parts (1p1n1w) 2925 | -8/Materials | Garrison activated, responded to threat 2972 | -8/Materials | Identified exit to Garrison 3033 | -8/Materials | Entered Garrison 3033 | -8/Garrison | Accompanied by 2 allies 3118 | -8/Garrison | Triggered checkpoint 3146 | -8/Garrison | Garrison Relay disabled 3210 | -8/Garrison | Triggered checkpoint 3270 | -8/Garrison | Discovered new exit (range 6) 3419 | -8/Garrison | Triggered checkpoint 3542 | -8/Garrison | Triggered checkpoint 3583 | -8/Garrison | Destroyed 7 combat bots 3608 | -8/Garrison | Triggered checkpoint 3695 | -8/Garrison | Discovered new exit (range 12) 3832 | -8/Garrison | Triggered checkpoint 3994 | -8/Garrison | Discovered new exit (range 14) 4161 | -8/Garrison | Triggered checkpoint 4207 | -8/Garrison | Garrison Relay disabled 4253 | -8/Garrison | Garrison Relay disabled 4454 | -8/Garrison | Entered Materials 4454 | -8/Materials | Accompanied by 3 allies 5011 | -8/Materials | Met 7R-MNS 5054 | -8/Materials | Discovered new exit (range 15) 5092 | -8/Materials | Entered Factory 5092 | -7/Factory | Evolved 2 slots: Utility x2 5093 | -7/Factory | Caught up to 7R-MNS 5702 | -7/Factory | Discovered new exit (range 16) 5727 | -7/Factory | Identified exit to Factory 6034 | -7/Factory | Discovered exit to Factory (range 6) 6982 | -7/Factory | Discovered new exit (range 15) 7006 | -7/Factory | Identified exit to Lower Caves 7240 | -7/Factory | Discovered exit to Factory (range 4) 7500 | -7/Factory | Entered Lower Caves 7500 | -7/Lower Caves | Accompanied by 1 ally 7507 | -7/Lower Caves | Met a Warlord Commander 7508 | -7/Lower Caves | Learned location of Warlord (-4) 7509 | -7/Lower Caves | Warlord Commander delivered Encrypted Comm Array 7522 | -7/Lower Caves | Found Encrypted Comm Array 7541 | -7/Lower Caves | A Derelict revealed a hidden shortcut to a safe place 8042 | -7/Lower Caves | Attracted the attention of an 0b10 checkpoint 8098 | -7/Lower Caves | Discovered new exit (range 16) 8118 | -7/Lower Caves | Encountered a Warlord checkpoint 8125 | -7/Lower Caves | Identified exit to Lower Caves 8199 | -7/Lower Caves | Learned Factory terminal intel 8274 | -7/Lower Caves | Learned Factory trap positions 9162 | -7/Lower Caves | Attracted the attention of an 0b10 base 9259 | -7/Lower Caves | Lost 3 allies 9281 | -7/Lower Caves | Learned Armory terminal intel 9281 | -7/Lower Caves | Learned Armory emergency access door positions 9281 | -7/Lower Caves | Learned location of 1 exit from Factory 9671 | -7/Lower Caves | Identified exit to Zion 9676 | -7/Lower Caves | Entered Zion 9676 | -7/Zion | Accompanied by 1 ally 9788 | -7/Zion | Discovered new exit (range 15) 9823 | -7/Zion | Found CR-A16's Pointy Stick 10590 | -7/Zion | Rebuked by Imprinter 11211 | -7/Zion | Identified exit to Proximity Caves 11214 | -7/Zion | Entered Proximity Caves 11214 | -6/Proximity Caves | Accompanied by 1 ally 12206 | -6/Proximity Caves | Discovered exit to Factory (range 16) 12670 | -6/Proximity Caves | Learned location of 1 exit from Factory 12927 | -6/Proximity Caves | Spotted B-75 Beast 12957 | -6/Proximity Caves | Revealed the true nature of CR-A16's Pointy Stick 12960 | -6/Proximity Caves | Destroyed B-75 Beast 13535 | -6/Proximity Caves | Entered Factory 13535 | -6/Factory | Accompanied by 1 ally 13535 | -6/Factory | Evolved 2 slots: Utility x2 13536 | -6/Factory | Identified exit to Lower Caves 13536 | -6/Factory | Identified exit to Factory 13537 | -6/Factory | Loaded intel: 90 trap records 13538 | -6/Factory | Loaded intel: 26 terminal locations 13659 | -6/Factory | Joined by Warlord Chimera squad 13716 | -6/Factory | Lost 3 allies 14407 | -6/Factory | Found Launcher Loader 14520 | -6/Factory | Repaired Hrd. Heavy Armor Plating 14638 | -6/Factory | Repaired Hardlight Generator? 15147 | -6/Factory | Build established: Hauler-Mutant 15829 | -6/Factory | Fabricated Hrd. Heavy Armor Plating? 15906 | -6/Factory | Noticed a derelict Sapper rigging charges 16131 | -6/Factory | Fabricated Lrn. Tractor Beam? 16424 | -6/Factory | Cargo convoy interrupted 16515 | -6/Factory | Entered Lower Caves 16515 | -6/Lower Caves | Accompanied by 1 ally 16834 | -6/Lower Caves | Build established: Hauler-Skirmisher 17105 | -6/Lower Caves | Discovered new exit (range 7) 17115 | -6/Lower Caves | Identified exit to Lower Caves 17118 | -6/Lower Caves | Entered another Lower Caves area 17118 | -6/Lower Caves | Accompanied by 1 ally 17517 | -6/Lower Caves | Attacked by a delusional Derelict stockpiling Unaware 17642 | -6/Lower Caves | Discovered new exit (range 18) 17670 | -6/Lower Caves | Identified exit to Data Miner 17683 | -6/Lower Caves | Entered Data Miner 17683 | -6/Data Miner | Accompanied by 5 allies 17683 | -6/Data Miner | Discovered new exit (range 6) 17704 | -6/Data Miner | Met Data Miner 17763 | -6/Data Miner | Learned location of Section 7 (-2) 17763 | -6/Data Miner | Acquired the access code to Warlord's prototype stash 17785 | -6/Data Miner | Received God Mode back door access code from Data Miner 17815 | -6/Data Miner | Build established: Hauler-Mutant 17820 | -6/Data Miner | Identified exit to Proximity Caves 17825 | -6/Data Miner | Entered Proximity Caves 17825 | -5/Proximity Caves | Accompanied by 5 allies 17918 | -5/Proximity Caves | Spotted B-75 Beast 17936 | -5/Proximity Caves | Destroyed B-75 Beast 18051 | -5/Proximity Caves | Learned Factory trap positions 18136 | -5/Proximity Caves | Attracted the attention of an 0b10 checkpoint 18155 | -5/Proximity Caves | Learned Factory security intel 18317 | -5/Proximity Caves | Lost 4 allies 18454 | -5/Proximity Caves | Found Prototype Launcher 18454 | -5/Proximity Caves | Identified Gui. Missile Launcher 18558 | -5/Proximity Caves | Discovered exit to Factory (range 20) 18628 | -5/Proximity Caves | Lost 3 allies 18818 | -5/Proximity Caves | Entered Factory 18818 | -5/Factory | Accompanied by 2 allies 18818 | -5/Factory | Evolved 2 slots: Utility x2 18819 | -5/Factory | Loaded intel: 96 trap records 18903 | -5/Factory | Identified exit to Upper Caves 18903 | -5/Factory | Identified exit to Extension 19354 | -5/Factory | Garrison activated, responded to threat 19662 | -5/Factory | Fabricated Centrium Wheel? 19689 | -5/Factory | Destroyed 8 combat bots 19718 | -5/Factory | First assault squad dispatched 19735 | -5/Factory | Incoming assault squad redirected 19751 | -5/Factory | Build established: Hacker-Mutant 19762 | -5/Factory | Entered Upper Caves 19825 | -5/Upper Caves | Spotted B-75 Beast 19856 | -5/Upper Caves | Destroyed B-75 Beast 19949 | -5/Upper Caves | Attracted the attention of an 0b10 outpost 20005 | -5/Upper Caves | Destroyed 7 combat bots 20066 | -5/Upper Caves | Build established: Hauler-Mutant 20141 | -5/Upper Caves | Learned Factory emergency access door positions 20351 | -5/Upper Caves | Discovered new exit (range 8) 20589 | -5/Upper Caves | Identified exit to Upper Caves 20594 | -5/Upper Caves | Entered another Upper Caves area 20594 | -5/Upper Caves | Accompanied by 2 allies 20596 | -5/Upper Caves | Attracted the attention of an 0b10 checkpoint 20619 | -5/Upper Caves | Learned Factory interactive machine intel 21095 | -5/Upper Caves | Learned Factory trap positions 21313 | -5/Upper Caves | Discovered new exit (range 6) 21328 | -5/Upper Caves | Identified exit to Zhirov 21330 | -5/Upper Caves | Entered Zhirov 21330 | -5/Zhirov | Accompanied by 1 ally 21330 | -5/Zhirov | Discovered new exit (range 3) 21368 | -5/Zhirov | Met Zhirov 21428 | -5/Zhirov | Learned location of Quarantine (-3) 21428 | -5/Zhirov | Learned location of Testing (-2) 21428 | -5/Zhirov | Learned location of Command (-1) 21439 | -5/Zhirov | Zhirov requested help retrieving the SGEMP Prototype 21468 | -5/Zhirov | Found Alien Artifact 21468 | -5/Zhirov | Identified Integrated Reactor 21468 | -5/Zhirov | Installed Integrated Reactor, increased core energy generation (+10) 21571 | -5/Zhirov | Found Alien Artifact 21628 | -5/Zhirov | Identified exit to Proximity Caves 21635 | -5/Zhirov | Entered Proximity Caves 21635 | -4/Proximity Caves | Accompanied by 1 ally 21741 | -4/Proximity Caves | Attracted the attention of an 0b10 checkpoint 22012 | -4/Proximity Caves | Learned Research trap positions 22144 | -4/Proximity Caves | Learned location of 1 exit from Research 22428 | -4/Proximity Caves | Discovered new exit (range 10) 22528 | -4/Proximity Caves | Ambushed by research squad 22593 | -4/Proximity Caves | Entered Factory 22593 | -4/Factory | Evolved 2 slots: Utility x2 22594 | -4/Factory | Loaded intel: 126 trap records 22596 | -4/Factory | Loaded intel: 53 interactive machine locations 22683 | -4/Factory | Identified exit to Upper Caves 22738 | -4/Factory | Spotted B-86 Titan 22740 | -4/Factory | Destroyed B-86 Titan 22749 | -4/Factory | Found Hvy. Reflective Plating 22999 | -4/Factory | Repaired Arm. Huge Wheel 23059 | -4/Factory | Repaired Imp. Weapon Cycler 23081 | -4/Factory | Build established: Hauler-Assassin 23100 | -4/Factory | Repaired Imp. Utility Shielding 23191 | -4/Factory | Discovered new exit (range 15) 23437 | -4/Factory | Fabricated Neutron Missile Launcher (x1) 23597 | -4/Factory | Build established: Hacker-Skirmisher 23624 | -4/Factory | Fabricated Launcher Loader (x2) 23693 | -4/Factory | Repaired Imp. Cooling System 23723 | -4/Factory | Repaired Enh. Gauss Cannon 24220 | -4/Factory | Discovered new exit (range 22) 24237 | -4/Factory | Destroyed 10 combat bots 24324 | -4/Factory | Entered Upper Caves 24326 | -4/Upper Caves | Attracted the attention of an 0b10 checkpoint 24447 | -4/Upper Caves | Learned 4 Research zone layouts 24623 | -4/Upper Caves | Build established: Hacker-Mutant 24683 | -4/Upper Caves | Learned Research emergency access door positions 24923 | -4/Upper Caves | Discovered new exit (range 5) 24937 | -4/Upper Caves | Entered another Upper Caves area 25250 | -4/Upper Caves | Encountered a Warlord checkpoint 25710 | -4/Upper Caves | Attracted the attention of an 0b10 checkpoint 25762 | -4/Upper Caves | Discovered new exit (range 10) 25824 | -4/Upper Caves | Learned Research machine intel 26265 | -4/Upper Caves | Discovered new exit (range 11) 26316 | -4/Upper Caves | System corruption reached 10% 26320 | -4/Upper Caves | Entered Research 26320 | -3/Research | Evolved 2 slots: Utility x2 26321 | -3/Research | Identified exit to Quarantine 26323 | -3/Research | Loaded intel: 96 trap records 26325 | -3/Research | Loaded intel: 127 machine locations 26653 | -3/Research | Found Quantum Capacitor 26864 | -3/Research | Fabricated Neutron Missile Launcher? 27388 | -3/Research | Entered Quarantine 27389 | -3/Quarantine | Maximum security lockdown engaged 27445 | -3/Quarantine | Found Prototype Hackware 27634 | -3/Quarantine | Destroyed 28 combat bots 27668 | -3/Quarantine | Spotted Investigator 27668 | -3/Quarantine | Scanned by Researcher 27672 | -3/Quarantine | Destroyed Investigator 27718 | -3/Quarantine | Build established: Hauler-Mutant 27759 | -3/Quarantine | Destroyed 27 combat bots 27813 | -3/Quarantine | Spotted Striker 27835 | -3/Quarantine | Destroyed Striker 27845 | -3/Quarantine | Spotted Striker 27845 | -3/Quarantine | Spotted Executioner 27845 | -3/Quarantine | Spotted Executioner 27860 | -3/Quarantine | Destroyed Executioner 27870 | -3/Quarantine | Destroyed Striker 27873 | -3/Quarantine | Destroyed Executioner 27894 | -3/Quarantine | Destroyed 31 combat bots 28002 | -3/Quarantine | Spotted Executioner 28007 | -3/Quarantine | System corruption reached 10% 28008 | -3/Quarantine | Identified Transdimensional Reconstructor 28008 | -3/Quarantine | Warped through subspace 28037 | -3/Quarantine | Lost 9 parts (1p1n4u3w) 28107 | -3/Quarantine | Discovered new exit (range 5) 28113 | -3/Quarantine | Core integrity fell below 50% 28118 | -3/Quarantine | Entered Research 28118 | -2/Research | Evolved 2 slots: Utility x2 28122 | -2/Research | Identified Exp. Hacking Suite 28142 | -2/Research | Identified exit to Access 28368 | -2/Research | First assault squad dispatched 28384 | -2/Research | Incoming assault squad redirected 28401 | -2/Research | Identified exit to DSF 28403 | -2/Research | Entered DSF 28412 | -2/DSF | Build established: Hacker-Skirmisher 28451 | -2/DSF | Additional patrols routed to DSF 28516 | -2/DSF | Discovered exit to Access (range 14) 28522 | -2/DSF | Entered Access 28522 | -1/Access | Evolved 2 slots: Utility x2 28533 | -1/Access | Lost 8 parts (5u3w) 28741 | -1/Access | Build established: Hacker-Mutant 28769 | -1/Access | Incoming investigation squad redirected 28845 | -1/Access | Fabricated D-83 Annihilator? 28875 | -1/Access | Identified exit to Surface 28902 | -1/Access | Lost 4 parts (1n3u) 28904 | -1/Access | Incoming investigation squad redirected 28939 | -1/Access | Spotted B-99 Colossus 29019 | -1/Access | Incoming investigation squad redirected 29043 | -1/Access | Incoming investigation squad redirected 29060 | -1/Access | Core integrity fell below 50% 29076 | -1/Access | Core integrity fell below 20% 29087 | -1/Access | Destroyed by H-88 Terminator with KE Penetrator Last Messages --------------- 29071_ Wall collapses. 29071_ Slug penetrates Wall. 29072_ Penetrated by Slug. 29074_ Wall collapses. 29074_ Penetrated by Slug. 29074_ Adv. Target Analyzer destroyed. 29075_ Slug penetrates Wall. 29075_ Penetrated by Slug. 29075_ Graphene Brace destroyed. 29075_ U-05 Engineer builds a Wall. 29077_ Slug penetrates Wall. 29078_ Adv. Energy Well destroyed. 29080_ Slug penetrates Wall. 29081_ Penetrated by Slug. 29083_ Slug penetrates Wall. 29085_ Wall collapses. 29086_ R-10 Processor collects Xenon Bombardment Thruster. 29087_ U-05 Engineer builds a Wall. 29087_ Slug penetrates Wall. Map ----- +----------------------------------------------------+ | ?????????????????????????????????????????????????? | | ?????????????????????????????????????????????????? | | ?????????????????????????????????????????????????? | | ?????????????????????????????????????????????????? | | ?????????????????????????????????????????????????? | | ?????????????????????????????????????????????????? | | ?????????????????????????????????????????????????? | | ?????????????????????????????????????????????????? | | ?????????????????????????????????????????????????? | | ?????????????????????????????????????????????????? | | ???????????????BB????BB??????????????????????????? | | ???????????????BB????BB????????????c?????????????? | | ???????????????????????????????????cH????????????? | | ??????????????????????????????????? ?????????????? | | ??????????????????????????????????"c?????????????? | | ?????????????????????????????????"""?????????????? | | ?????????????????????????????????"" ?????????????? | | ?????????????????????????????????" ?????????????? | | ????????????????????????????????? !?????????????? | | ????????????????????????????????? ?????????????? | | ?????????????????????????????????#+#?????????????? | | ???????????????????